[Event "Early-Titled-Tuesday-Blitz-April-23-2024"]
[Site "Chess.com"]
[Date "2024.04.23"]
[Round "2"]
[White "ReinisUz"]
[Black "Elegance_Riks"]
[Result "0-1"]
[WhiteElo "2464"]
[BlackElo "2763"]
[TimeControl "180+1"]
[EndTime "8:17:25 PDT"]
[Termination "Elegance_Riks won by resignation"]

1. c4 {[%clk 0:03:00.9]} 1... g6 {[%clk 0:02:51.3]} 2. Nc3 {[%clk 0:03:00.7]}
2... Bg7 {[%clk 0:02:51.7]} 3. g3 {[%clk 0:03:01.3]} 3... d6 {[%clk 0:02:50.8]}
4. Bg2 {[%clk 0:03:01.1]} 4... Nf6 {[%clk 0:02:51.3]} 5. Nf3 {[%clk 0:02:56.4]}
5... O-O {[%clk 0:02:51.4]} 6. O-O {[%clk 0:02:56.6]} 6... e5 {[%clk 0:02:50.6]}
7. d3 {[%clk 0:02:51.4]} 7... a5 {[%clk 0:02:48]} 8. Rb1 {[%clk 0:02:50.2]} 8...
h6 {[%clk 0:02:47.1]} 9. a3 {[%clk 0:02:50.3]} 9... Nc6 {[%clk 0:02:43.8]} 10.
b4 {[%clk 0:02:49.4]} 10... axb4 {[%clk 0:02:44]} 11. axb4 {[%clk 0:02:50.3]}
11... Ne7 {[%clk 0:02:39.8]} 12. Nd2 {[%clk 0:02:45.5]} 12... d5 {[%clk
0:02:35.8]} 13. Bb2 {[%clk 0:02:31.9]} 13... d4 {[%clk 0:02:33.9]} 14. Nce4
{[%clk 0:02:29]} 14... Nxe4 {[%clk 0:02:33.9]} 15. dxe4 {[%clk 0:02:26.2]} 15...
Be6 {[%clk 0:02:31.1]} 16. b5 {[%clk 0:02:10.9]} 16... Qd7 {[%clk 0:02:29.3]}
17. Qb3 {[%clk 0:02:09.7]} 17... Nc8 {[%clk 0:02:19.7]} 18. Ra1 {[%clk
0:02:01.7]} 18... Nd6 {[%clk 0:02:19.5]} 19. Rxa8 {[%clk 0:01:51.6]} 19... Rxa8
{[%clk 0:02:19.1]} 20. Ra1 {[%clk 0:01:52.5]} 20... Rxa1+ {[%clk 0:02:19.2]} 21.
Bxa1 {[%clk 0:01:53.4]} 21... b6 {[%clk 0:02:19.2]} 22. Qa4 {[%clk 0:01:37.7]}
22... Kh7 {[%clk 0:02:18]} 23. Bb2 {[%clk 0:01:20.7]} 23... h5 {[%clk
0:01:56.4]} 24. f4 {[%clk 0:00:46.8]} 24... Bh6 {[%clk 0:01:29.1]} 25. Nf3
{[%clk 0:00:40.7]} 25... Nxc4 {[%clk 0:01:25.1]} 26. Bc1 {[%clk 0:00:38.5]}
26... d3 {[%clk 0:01:13.8]} 27. Qd1 {[%clk 0:00:31.7]} 27... d2 {[%clk
0:01:09.3]} 28. Nxd2 {[%clk 0:00:28.8]} 28... exf4 {[%clk 0:01:09.4]} 29. Qc2
{[%clk 0:00:18.1]} 29... Ne3 {[%clk 0:01:08.9]} 30. Qd3 {[%clk 0:00:17.8]} 30...
fxg3 {[%clk 0:01:04.3]} 31. hxg3 {[%clk 0:00:16.7]} 31... Nxg2 {[%clk
0:01:03.3]} 32. Kxg2 {[%clk 0:00:17]} 32... Qxd3 {[%clk 0:01:01.6]} 33. exd3
{[%clk 0:00:16.8]} 33... Bd7 {[%clk 0:01:02.2]} 34. Nb3 {[%clk 0:00:14.4]} 34...
Bxb5 {[%clk 0:00:57.3]} 35. Bxh6 {[%clk 0:00:13.3]} 35... Kxh6 {[%clk 0:00:57]}
36. Nc1 {[%clk 0:00:13.3]} 36... g5 {[%clk 0:00:55.3]} 37. Kf3 {[%clk
0:00:13.6]} 37... c5 {[%clk 0:00:55.4]} 38. Ke3 {[%clk 0:00:13.6]} 38... Kg6
{[%clk 0:00:53.4]} 39. Ne2 {[%clk 0:00:14.1]} 39... f5 {[%clk 0:00:49.3]} 40.
Nc3 {[%clk 0:00:14.1]} 40... Bc6 {[%clk 0:00:49.1]} 41. exf5+ {[%clk 0:00:12]}
41... Kxf5 {[%clk 0:00:49.1]} 42. Ne2 {[%clk 0:00:12.5]} 42... h4 {[%clk
0:00:47.1]} 0-1

[Event "Early-Titled-Tuesday-Blitz-April-23-2024"]
[Site "Chess.com"]
[Date "2024.04.23"]
[Round "2"]
[White "Harry_Rakkel"]
[Black "N_I_Chess"]
[Result "1-0"]
[WhiteElo "2696"]
[BlackElo "2395"]
[TimeControl "180+1"]
[EndTime "8:17:25 PDT"]
[Termination "Harry_Rakkel won on time"]

1. Nf3 {[%clk 0:03:00.9]} 1... Nf6 {[%clk 0:02:52.4]} 2. g3 {[%clk 0:02:59.8]}
2... d5 {[%clk 0:02:49.5]} 3. Bg2 {[%clk 0:02:59.4]} 3... Bg4 {[%clk 0:02:42.8]}
4. O-O {[%clk 0:02:58.7]} 4... e6 {[%clk 0:02:42.5]} 5. d3 {[%clk 0:02:57.5]}
5... Be7 {[%clk 0:02:35.7]} 6. Nbd2 {[%clk 0:02:57.2]} 6... O-O {[%clk
0:02:35.1]} 7. h3 {[%clk 0:02:56.5]} 7... Bh5 {[%clk 0:02:34.4]} 8. e4 {[%clk
0:02:55.9]} 8... c5 {[%clk 0:02:19.7]} 9. Qe2 {[%clk 0:02:49.7]} 9... Nc6 {[%clk
0:02:18.2]} 10. g4 {[%clk 0:02:49.1]} 10... Bg6 {[%clk 0:02:17.3]} 11. e5 {[%clk
0:02:48.4]} 11... Nd7 {[%clk 0:02:17.2]} 12. Re1 {[%clk 0:02:48.6]} 12... Qc7
{[%clk 0:02:14.7]} 13. Nf1 {[%clk 0:02:47]} 13... Rac8 {[%clk 0:01:54.4]} 14.
Bf4 {[%clk 0:02:19]} 14... Nd4 {[%clk 0:01:32.7]} 15. Nxd4 {[%clk 0:02:17.6]}
15... cxd4 {[%clk 0:01:33.6]} 16. Rac1 {[%clk 0:02:17.6]} 16... Qb6 {[%clk
0:01:28.2]} 17. b3 {[%clk 0:01:55]} 17... Ba3 {[%clk 0:01:23.4]} 18. h4 {[%clk
0:01:54.9]} 18... Bxc1 {[%clk 0:01:15.3]} 19. Rxc1 {[%clk 0:01:55.8]} 19... h6
{[%clk 0:01:14.6]} 20. h5 {[%clk 0:01:55.4]} 20... Bh7 {[%clk 0:01:12.7]} 21. g5
{[%clk 0:01:55.6]} 21... hxg5 {[%clk 0:01:08.1]} 22. Bxg5 {[%clk 0:01:55.6]}
22... Rc6 {[%clk 0:01:07.9]} 23. Nh2 {[%clk 0:01:52.5]} 23... Rfc8 {[%clk
0:01:06.6]} 24. h6 {[%clk 0:01:48.5]} 24... Qc7 {[%clk 0:00:57.6]} 25. hxg7
{[%clk 0:01:12.8]} 25... Qxe5 {[%clk 0:00:50.7]} 26. Qh5 {[%clk 0:01:07.9]}
26... Qxg7 {[%clk 0:00:42.8]} 27. Ng4 {[%clk 0:01:07.3]} 27... Bg6 {[%clk
0:00:20.4]} 28. Qh4 {[%clk 0:01:03.3]} 28... e5 {[%clk 0:00:17.4]} 29. Bxd5
{[%clk 0:00:59.7]} 29... Rd6 {[%clk 0:00:15.2]} 30. Nh6+ {[%clk 0:00:53.1]}
30... Kf8 {[%clk 0:00:15.2]} 31. Be7+ {[%clk 0:00:52.7]} 31... Ke8 {[%clk
0:00:12.5]} 32. Bxd6 {[%clk 0:00:53.6]} 32... Nf6 {[%clk 0:00:10.1]} 33. Bg2
{[%clk 0:00:51.6]} 33... e4 {[%clk 0:00:06.8]} 34. dxe4 {[%clk 0:00:49.6]} 34...
Rd8 {[%clk 0:00:02.8]} 35. e5 {[%clk 0:00:47]} 1-0

[Event "Early-Titled-Tuesday-Blitz-April-23-2024"]
[Site "Chess.com"]
[Date "2024.04.23"]
[Round "2"]
[White "Iskusnyh"]
[Black "sergoy"]
[Result "0-1"]
[WhiteElo "2620"]
[BlackElo "2928"]
[TimeControl "180+1"]
[EndTime "8:17:31 PDT"]
[Termination "sergoy won on time"]

1. d4 {[%clk 0:03:00.9]} 1... d5 {[%clk 0:03:00.4]} 2. c4 {[%clk 0:02:59.9]}
2... c6 {[%clk 0:03:01.2]} 3. Nf3 {[%clk 0:02:59.8]} 3... Nf6 {[%clk 0:03:02]}
4. e3 {[%clk 0:02:59.4]} 4... Bf5 {[%clk 0:03:02.8]} 5. Nc3 {[%clk 0:02:58.5]}
5... e6 {[%clk 0:03:03.4]} 6. Nh4 {[%clk 0:02:56.6]} 6... Be4 {[%clk 0:03:03.7]}
7. f3 {[%clk 0:02:55.8]} 7... Bg6 {[%clk 0:03:03.6]} 8. Bd2 {[%clk 0:02:54.2]}
8... Be7 {[%clk 0:03:01.9]} 9. Nxg6 {[%clk 0:02:50.2]} 9... hxg6 {[%clk
0:03:02]} 10. Qc2 {[%clk 0:02:50.8]} 10... Nbd7 {[%clk 0:03:01.6]} 11. O-O-O
{[%clk 0:02:41.6]} 11... dxc4 {[%clk 0:03:01.7]} 12. Bxc4 {[%clk 0:02:40.4]}
12... b5 {[%clk 0:03:02.3]} 13. Be2 {[%clk 0:02:20.9]} 13... a6 {[%clk
0:03:02.7]} 14. e4 {[%clk 0:01:54.3]} 14... Rc8 {[%clk 0:03:02.7]} 15. Kb1
{[%clk 0:01:42.6]} 15... c5 {[%clk 0:02:54.3]} 16. d5 {[%clk 0:01:42]} 16...
exd5 {[%clk 0:02:51.4]} 17. exd5 {[%clk 0:01:39.1]} 17... O-O {[%clk 0:02:46.2]}
18. Bc1 {[%clk 0:01:19.1]} 18... Bd6 {[%clk 0:02:45.1]} 19. g4 {[%clk 0:01:09]}
19... b4 {[%clk 0:02:41.2]} 20. Ne4 {[%clk 0:01:07.2]} 20... Nxe4 {[%clk
0:02:41.3]} 21. fxe4 {[%clk 0:01:06.4]} 21... c4 {[%clk 0:02:40]} 22. h4 {[%clk
0:00:52.9]} 22... Ne5 {[%clk 0:02:33.6]} 23. Rh3 {[%clk 0:00:38.6]} 23... a5
{[%clk 0:02:26.4]} 24. g5 {[%clk 0:00:29.2]} 24... b3 {[%clk 0:02:02.7]} 25.
axb3 {[%clk 0:00:23.9]} 25... cxb3 {[%clk 0:02:03.6]} 26. Qxb3 {[%clk
0:00:24.2]} 26... Rb8 {[%clk 0:02:04.3]} 27. Qa4 {[%clk 0:00:18.8]} 27... Rb4
{[%clk 0:02:03.6]} 28. Qc2 {[%clk 0:00:17]} 28... Qd7 {[%clk 0:02:03.3]} 29. Rc3
{[%clk 0:00:16.3]} 29... Rfb8 {[%clk 0:02:01.7]} 30. h5 {[%clk 0:00:15.3]} 30...
gxh5 {[%clk 0:02:01]} 31. Bxh5 {[%clk 0:00:15.4]} 31... a4 {[%clk 0:02:01.5]}
32. Ka1 {[%clk 0:00:13.8]} 32... Rb3 {[%clk 0:02:01.4]} 33. g6 {[%clk
0:00:12.7]} 33... fxg6 {[%clk 0:02:00.4]} 34. Be2 {[%clk 0:00:12.4]} 34... Qb7
{[%clk 0:01:56.2]} 35. Rh1 {[%clk 0:00:09.6]} 35... Rxc3 {[%clk 0:01:44.2]} 36.
Qxc3 {[%clk 0:00:09.5]} 36... a3 {[%clk 0:01:44.3]} 37. b3 {[%clk 0:00:09.7]}
37... Qxb3 {[%clk 0:01:31.6]} 38. Qxb3 {[%clk 0:00:09.7]} 38... Rxb3 {[%clk
0:01:32.5]} 39. Ba6 {[%clk 0:00:10.3]} 39... Rc3 {[%clk 0:01:02.1]} 40. Bg5
{[%clk 0:00:08]} 40... Nf3 {[%clk 0:00:53.1]} 41. Bd2 {[%clk 0:00:05.2]} 41...
Nxd2 {[%clk 0:00:51.7]} 0-1

[Event "Early-Titled-Tuesday-Blitz-April-23-2024"]
[Site "Chess.com"]
[Date "2024.04.23"]
[Round "2"]
[White "AradNazari"]
[Black "NovakRatko"]
[Result "1-0"]
[WhiteElo "2721"]
[BlackElo "2374"]
[TimeControl "180+1"]
[EndTime "8:17:31 PDT"]
[Termination "AradNazari won by checkmate"]

1. e4 {[%clk 0:03:00.9]} 1... d5 {[%clk 0:02:59.2]} 2. exd5 {[%clk 0:02:59.3]}
2... c6 {[%clk 0:02:59.8]} 3. dxc6 {[%clk 0:02:59.3]} 3... Nxc6 {[%clk
0:03:00.7]} 4. Nf3 {[%clk 0:02:59.9]} 4... e5 {[%clk 0:03:00.9]} 5. Nc3 {[%clk
0:02:58.9]} 5... Bd6 {[%clk 0:03:01]} 6. Bb5 {[%clk 0:02:59.3]} 6... Ne7 {[%clk
0:03:01]} 7. d4 {[%clk 0:02:56.7]} 7... exd4 {[%clk 0:03:01.9]} 8. Nxd4 {[%clk
0:02:55.5]} 8... O-O {[%clk 0:02:59.9]} 9. Nxc6 {[%clk 0:02:48.6]} 9... Nxc6
{[%clk 0:02:59.8]} 10. O-O {[%clk 0:02:47.6]} 10... Qc7 {[%clk 0:02:58.2]} 11.
h3 {[%clk 0:02:36.3]} 11... Bf5 {[%clk 0:02:54.2]} 12. Bd3 {[%clk 0:02:25.5]}
12... Bxd3 {[%clk 0:02:50.1]} 13. Qxd3 {[%clk 0:02:26.4]} 13... Nb4 {[%clk
0:02:50.7]} 14. Qd1 {[%clk 0:02:12.8]} 14... Bh2+ {[%clk 0:02:47.6]} 15. Kh1
{[%clk 0:02:12.2]} 15... Rad8 {[%clk 0:02:48.1]} 16. Qe2 {[%clk 0:02:08.3]}
16... Be5 {[%clk 0:02:42.2]} 17. Bg5 {[%clk 0:01:59.7]} 17... f6 {[%clk
0:02:35.9]} 18. Be3 {[%clk 0:01:56.9]} 18... Bxc3 {[%clk 0:02:32.8]} 19. bxc3
{[%clk 0:01:57.3]} 19... Qxc3 {[%clk 0:02:33]} 20. Bxa7 {[%clk 0:01:51]} 20...
Qxc2 {[%clk 0:02:26.5]} 21. Qb5 {[%clk 0:01:42.7]} 21... Nc6 {[%clk 0:01:37.1]}
22. Be3 {[%clk 0:01:20.5]} 22... Rd7 {[%clk 0:01:29]} 23. a4 {[%clk 0:01:10.8]}
23... Ra8 {[%clk 0:01:19.4]} 24. a5 {[%clk 0:01:04.3]} 24... Qd3 {[%clk
0:01:18.9]} 25. Qh5 {[%clk 0:00:35.4]} 25... g6 {[%clk 0:01:14.4]} 26. Qf3
{[%clk 0:00:34.7]} 26... Ne5 {[%clk 0:01:03.3]} 27. Qxf6 {[%clk 0:00:29.3]}
27... Qf5 {[%clk 0:00:53.1]} 28. Qxf5 {[%clk 0:00:25.1]} 28... gxf5 {[%clk
0:00:52.9]} 29. Rfc1 {[%clk 0:00:20.4]} 29... Kf7 {[%clk 0:00:47.2]} 30. Rc5
{[%clk 0:00:19.3]} 30... Kf6 {[%clk 0:00:42.2]} 31. Rb1 {[%clk 0:00:18]} 31...
Nc6 {[%clk 0:00:36.5]} 32. Rbb5 {[%clk 0:00:15.6]} 32... Ne7 {[%clk 0:00:29.3]}
33. h4 {[%clk 0:00:15.7]} 33... Ke6 {[%clk 0:00:23.9]} 34. Re5+ {[%clk
0:00:14.5]} 34... Kd6 {[%clk 0:00:22.9]} 35. Bf4 {[%clk 0:00:14]} 35... Kc6
{[%clk 0:00:22.6]} 36. Rec5# {[%clk 0:00:14.2]} 1-0

[Event "Early-Titled-Tuesday-Blitz-April-23-2024"]
[Site "Chess.com"]
[Date "2024.04.23"]
[Round "2"]
[White "hongnhung1234"]
[Black "kekic76"]
[Result "1-0"]
[WhiteElo "2557"]
[BlackElo "2330"]
[TimeControl "180+1"]
[EndTime "8:17:32 PDT"]
[Termination "hongnhung1234 won by resignation"]

1. e4 {[%clk 0:03:00.9]} 1... c6 {[%clk 0:02:56.7]} 2. d4 {[%clk 0:03:00.5]}
2... d5 {[%clk 0:02:57.1]} 3. Nc3 {[%clk 0:03:01.2]} 3... dxe4 {[%clk 0:02:57]}
4. Nxe4 {[%clk 0:03:01.8]} 4... Bf5 {[%clk 0:02:57.7]} 5. Ng3 {[%clk 0:03:02]}
5... Bg6 {[%clk 0:02:58.3]} 6. h4 {[%clk 0:03:02]} 6... h6 {[%clk 0:02:58]} 7.
N1e2 {[%clk 0:03:02.3]} 7... Nf6 {[%clk 0:02:50.4]} 8. Nf4 {[%clk 0:03:02.1]}
8... Bh7 {[%clk 0:02:51]} 9. Bd3 {[%clk 0:03:01.4]} 9... Bxd3 {[%clk 0:02:50.4]}
10. Qxd3 {[%clk 0:03:01.9]} 10... Nbd7 {[%clk 0:02:49]} 11. Bd2 {[%clk
0:02:51.3]} 11... Qc7 {[%clk 0:02:42.1]} 12. O-O-O {[%clk 0:02:48.6]} 12...
O-O-O {[%clk 0:02:41.1]} 13. Kb1 {[%clk 0:02:47.2]} 13... e6 {[%clk 0:02:41.3]}
14. Qf3 {[%clk 0:02:46.1]} 14... Bd6 {[%clk 0:02:38.2]} 15. Rhe1 {[%clk
0:02:43.5]} 15... Rhf8 {[%clk 0:02:34.6]} 16. Ngh5 {[%clk 0:02:27.7]} 16... Nxh5
{[%clk 0:02:20.2]} 17. Nxh5 {[%clk 0:02:28.5]} 17... g6 {[%clk 0:02:20.5]} 18.
Nf6 {[%clk 0:02:27.9]} 18... Nxf6 {[%clk 0:02:16.2]} 19. Qxf6 {[%clk 0:02:28.8]}
19... Be7 {[%clk 0:02:16.1]} 20. Qf3 {[%clk 0:02:27.3]} 20... h5 {[%clk
0:02:08.6]} 21. g3 {[%clk 0:02:26.3]} 21... Rxd4 {[%clk 0:02:04.5]} 22. Be3
{[%clk 0:02:22.5]} 22... Rxd1+ {[%clk 0:01:59.3]} 23. Rxd1 {[%clk 0:02:23.3]}
23... a6 {[%clk 0:01:46.2]} 24. Bf4 {[%clk 0:02:19.6]} 24... Qb6 {[%clk
0:01:35.7]} 25. Bh6 {[%clk 0:02:15.5]} 25... Rd8 {[%clk 0:01:20]} 26. Rxd8+
{[%clk 0:02:13.7]} 26... Qxd8 {[%clk 0:01:20.3]} 27. Qxf7 {[%clk 0:02:13.4]}
27... Qd6 {[%clk 0:00:19.2]} 28. a3 {[%clk 0:02:06.3]} 28... e5 {[%clk
0:00:17.4]} 29. Qf3 {[%clk 0:01:58.8]} 29... Qf6 {[%clk 0:00:17.1]} 30. Qb3
{[%clk 0:01:50.8]} 30... Qxf2 {[%clk 0:00:10.8]} 31. Qe6+ {[%clk 0:01:51.1]}
31... Kd8 {[%clk 0:00:10.7]} 32. Qxg6 {[%clk 0:01:50.9]} 32... Qe1+ {[%clk
0:00:09.4]} 33. Ka2 {[%clk 0:01:49.5]} 33... Qd1 {[%clk 0:00:09.2]} 34. Bg5
{[%clk 0:01:29.7]} 34... Qd5+ {[%clk 0:00:09]} 35. b3 {[%clk 0:01:27.2]} 35...
Qd7 {[%clk 0:00:05.8]} 36. Qxh5 {[%clk 0:01:24.5]} 36... Bxg5 {[%clk 0:00:05.7]}
37. Qxg5+ {[%clk 0:01:25]} 37... Qe7 {[%clk 0:00:06.6]} 38. Qxe7+ {[%clk
0:01:12]} 38... Kxe7 {[%clk 0:00:07]} 39. Kb2 {[%clk 0:01:12.5]} 39... Ke6
{[%clk 0:00:07.4]} 40. Kc3 {[%clk 0:01:12.4]} 40... e4 {[%clk 0:00:08.1]} 41.
Kd4 {[%clk 0:01:11.9]} 41... Kf5 {[%clk 0:00:09]} 42. Ke3 {[%clk 0:01:10.2]}
42... c5 {[%clk 0:00:08.7]} 43. h5 {[%clk 0:01:08.6]} 43... b5 {[%clk
0:00:08.2]} 44. g4+ {[%clk 0:01:08]} 44... Kg5 {[%clk 0:00:07.8]} 45. Kxe4
{[%clk 0:01:07.7]} 1-0

[Event "Early-Titled-Tuesday-Blitz-April-23-2024"]
[Site "Chess.com"]
[Date "2024.04.23"]
[Round "2"]
[White "Agibileg"]
[Black "B_nn_t"]
[Result "1-0"]
[WhiteElo "2813"]
[BlackElo "2557"]
[TimeControl "180+1"]
[EndTime "8:17:34 PDT"]
[Termination "Agibileg won by resignation"]

1. d4 {[%clk 0:03:00.3]} 1... Nf6 {[%clk 0:03:00.1]} 2. c4 {[%clk 0:03:00.5]}
2... e6 {[%clk 0:03:00.5]} 3. Nc3 {[%clk 0:03:00.7]} 3... Bb4 {[%clk 0:03:00.4]}
4. e3 {[%clk 0:03:01.1]} 4... O-O {[%clk 0:03:00.4]} 5. Bd3 {[%clk 0:03:00.9]}
5... d5 {[%clk 0:02:59.4]} 6. a3 {[%clk 0:03:00]} 6... Be7 {[%clk 0:02:57.2]} 7.
Nge2 {[%clk 0:02:58.6]} 7... dxc4 {[%clk 0:02:54.4]} 8. Bxc4 {[%clk 0:02:59.2]}
8... b6 {[%clk 0:02:54.9]} 9. O-O {[%clk 0:02:52.7]} 9... Bb7 {[%clk 0:02:54.9]}
10. Ng3 {[%clk 0:02:52.3]} 10... c5 {[%clk 0:02:54.8]} 11. dxc5 {[%clk
0:02:50.7]} 11... Bxc5 {[%clk 0:02:53.1]} 12. b4 {[%clk 0:02:50.8]} 12... Be7
{[%clk 0:02:47.1]} 13. Bb2 {[%clk 0:02:51]} 13... Nbd7 {[%clk 0:02:42.3]} 14.
Qe2 {[%clk 0:02:49.9]} 14... Rc8 {[%clk 0:02:30.5]} 15. Rac1 {[%clk 0:02:47.7]}
15... Ne5 {[%clk 0:02:25.8]} 16. Rfd1 {[%clk 0:02:44]} 16... Qc7 {[%clk
0:02:17.3]} 17. Ba2 {[%clk 0:02:41.5]} 17... Qb8 {[%clk 0:02:12.2]} 18. f4
{[%clk 0:02:16.2]} 18... Ned7 {[%clk 0:01:59.4]} 19. Kh1 {[%clk 0:01:49.2]}
19... Rfd8 {[%clk 0:01:58.5]} 20. f5 {[%clk 0:01:49]} 20... e5 {[%clk
0:01:42.3]} 21. e4 {[%clk 0:01:44.7]} 21... a5 {[%clk 0:01:40.5]} 22. Qb5 {[%clk
0:01:17]} 22... Bc6 {[%clk 0:01:33.3]} 23. Qe2 {[%clk 0:01:03]} 23... Bb7 {[%clk
0:01:29.4]} 24. Nh5 {[%clk 0:00:55]} 24... axb4 {[%clk 0:01:25.9]} 25. axb4
{[%clk 0:00:52.7]} 25... Bxb4 {[%clk 0:01:19.7]} 26. Rxd7 {[%clk 0:00:52.3]}
26... Nxd7 {[%clk 0:01:15.1]} 27. Qg4 {[%clk 0:00:51.2]} 27... Bf8 {[%clk
0:01:11.9]} 28. Rf1 {[%clk 0:00:41.5]} 28... Qa8 {[%clk 0:00:46]} 29. Nxg7
{[%clk 0:00:33.8]} 29... Rxc3 {[%clk 0:00:36.2]} 30. Nh5+ {[%clk 0:00:28.3]}
30... Kh8 {[%clk 0:00:36.4]} 31. Bxf7 {[%clk 0:00:28.6]} 31... Bh6 {[%clk
0:00:26]} 32. Bxc3 {[%clk 0:00:27.8]} 32... Qa6 {[%clk 0:00:24.8]} 33. Rd1
{[%clk 0:00:21.3]} 33... Qc4 {[%clk 0:00:19.3]} 34. Bxc4 {[%clk 0:00:18.8]} 1-0

[Event "Early-Titled-Tuesday-Blitz-April-23-2024"]
[Site "Chess.com"]
[Date "2024.04.23"]
[Round "2"]
[White "Mackster23"]
[Black "sokidze"]
[Result "1-0"]
[WhiteElo "2580"]
[BlackElo "2812"]
[TimeControl "180+1"]
[EndTime "8:17:35 PDT"]
[Termination "Mackster23 won by resignation"]

1. e4 {[%clk 0:02:59.8]} 1... c5 {[%clk 0:02:57.2]} 2. Nf3 {[%clk 0:02:59.9]}
2... e6 {[%clk 0:02:57.5]} 3. d4 {[%clk 0:02:59.8]} 3... cxd4 {[%clk 0:02:58]}
4. Nxd4 {[%clk 0:02:57.9]} 4... Nc6 {[%clk 0:02:58.7]} 5. Nc3 {[%clk 0:02:55.6]}
5... Qc7 {[%clk 0:02:58.9]} 6. Be3 {[%clk 0:02:54.9]} 6... a6 {[%clk 0:02:58.7]}
7. g4 {[%clk 0:02:54.9]} 7... b5 {[%clk 0:02:46.3]} 8. Nxc6 {[%clk 0:02:54.7]}
8... Qxc6 {[%clk 0:02:45.7]} 9. Qd2 {[%clk 0:02:54.6]} 9... Nf6 {[%clk
0:02:04.1]} 10. f3 {[%clk 0:02:53.5]} 10... d6 {[%clk 0:01:53]} 11. g5 {[%clk
0:02:52.6]} 11... Nd7 {[%clk 0:01:53]} 12. O-O-O {[%clk 0:02:45.7]} 12... Bb7
{[%clk 0:01:47.8]} 13. Rg1 {[%clk 0:02:34.5]} 13... Ne5 {[%clk 0:01:41.8]} 14.
Rg3 {[%clk 0:02:29]} 14... Rc8 {[%clk 0:01:39.2]} 15. f4 {[%clk 0:02:21.9]}
15... Nc4 {[%clk 0:01:07.9]} 16. Bxc4 {[%clk 0:02:21.5]} 16... Qxc4 {[%clk
0:01:07.9]} 17. a3 {[%clk 0:01:22.5]} 17... Bxe4 {[%clk 0:00:55.7]} 18. Nxe4
{[%clk 0:01:21.4]} 18... Qxe4 {[%clk 0:00:55.4]} 19. Bd4 {[%clk 0:01:19]} 19...
Kd7 {[%clk 0:00:29.5]} 20. Bxg7 {[%clk 0:00:58.1]} 20... Rxc2+ {[%clk
0:00:07.3]} 21. Qxc2 {[%clk 0:00:59]} 21... Qxc2+ {[%clk 0:00:07.9]} 22. Kxc2
{[%clk 0:00:59.9]} 22... Bxg7 {[%clk 0:00:08.3]} 23. f5 {[%clk 0:00:52.5]} 23...
Rc8+ {[%clk 0:00:07.4]} 24. Kb1 {[%clk 0:00:52.4]} 24... Rc5 {[%clk 0:00:02.7]}
25. f6 {[%clk 0:00:51]} 25... Bf8 {[%clk 0:00:01.9]} 26. Rdg1 {[%clk 0:00:49.9]}
26... h5 {[%clk 0:00:01.2]} 27. Rh3 {[%clk 0:00:44.7]} 27... Rf5 {[%clk
0:00:01]} 28. Rxh5 {[%clk 0:00:44.4]} 28... d5 {[%clk 0:00:01.9]} 29. Rh7 {[%clk
0:00:44.1]} 29... Ke8 {[%clk 0:00:02.4]} 30. h4 {[%clk 0:00:41.2]} 30... Bc5
{[%clk 0:00:02.5]} 31. Rg2 {[%clk 0:00:37]} 31... d4 {[%clk 0:00:03]} 32. h5
{[%clk 0:00:25.8]} 32... d3 {[%clk 0:00:03.1]} 33. g6 {[%clk 0:00:26.4]} 33...
fxg6 {[%clk 0:00:02.1]} 34. hxg6 {[%clk 0:00:26.7]} 34... Rf1+ {[%clk
0:00:02.5]} 35. Ka2 {[%clk 0:00:26.2]} 35... Rxf6 {[%clk 0:00:02.8]} 36. g7
{[%clk 0:00:26.3]} 1-0

[Event "Early-Titled-Tuesday-Blitz-April-23-2024"]
[Site "Chess.com"]
[Date "2024.04.23"]
[Round "2"]
[White "semchik90"]
[Black "Tagir45"]
[Result "0-1"]
[WhiteElo "2374"]
[BlackElo "2643"]
[TimeControl "180+1"]
[EndTime "8:17:37 PDT"]
[Termination "Tagir45 won by checkmate"]

1. Nf3 {[%clk 0:03:00.4]} 1... d5 {[%clk 0:02:59.1]} 2. c4 {[%clk 0:03:00.8]}
2... d4 {[%clk 0:02:58.5]} 3. e3 {[%clk 0:03:01.2]} 3... Nc6 {[%clk 0:02:56.7]}
4. b4 {[%clk 0:03:01.5]} 4... dxe3 {[%clk 0:02:54.6]} 5. fxe3 {[%clk 0:03:02.4]}
5... Nxb4 {[%clk 0:02:54.4]} 6. d4 {[%clk 0:03:02.9]} 6... e6 {[%clk 0:02:44.3]}
7. a3 {[%clk 0:03:02]} 7... Nc6 {[%clk 0:02:43]} 8. Bd3 {[%clk 0:03:02.6]} 8...
Nf6 {[%clk 0:02:42.5]} 9. O-O {[%clk 0:03:02.8]} 9... Be7 {[%clk 0:02:42]} 10.
Nc3 {[%clk 0:03:02.1]} 10... O-O {[%clk 0:02:40.7]} 11. d5 {[%clk 0:03:01.1]}
11... exd5 {[%clk 0:02:37.7]} 12. cxd5 {[%clk 0:03:01.1]} 12... Na5 {[%clk
0:02:34.3]} 13. e4 {[%clk 0:02:58.1]} 13... c6 {[%clk 0:02:33.3]} 14. Bg5 {[%clk
0:02:43.7]} 14... cxd5 {[%clk 0:02:24.2]} 15. e5 {[%clk 0:02:42.2]} 15... Ne4
{[%clk 0:02:20.6]} 16. Bxe7 {[%clk 0:02:32.9]} 16... Qxe7 {[%clk 0:02:15.5]} 17.
Nxe4 {[%clk 0:02:30]} 17... dxe4 {[%clk 0:02:14.6]} 18. Bxe4 {[%clk 0:02:30.9]}
18... Bg4 {[%clk 0:02:08.9]} 19. Qa4 {[%clk 0:02:22]} 19... Bxf3 {[%clk
0:01:50.5]} 20. Rxf3 {[%clk 0:02:18.4]} 20... Qxe5 {[%clk 0:01:48.2]} 21. Raf1
{[%clk 0:01:53.4]} 21... Rae8 {[%clk 0:01:28.8]} 22. Rxf7 {[%clk 0:01:16]} 22...
Rxf7 {[%clk 0:01:22.5]} 23. Bd5 {[%clk 0:01:16.2]} 23... Kh8 {[%clk 0:00:51.6]}
24. Bxf7 {[%clk 0:01:04.7]} 24... Rd8 {[%clk 0:00:37.9]} 25. Ba2 {[%clk
0:00:30.7]} 25... Nc6 {[%clk 0:00:32.1]} 26. h3 {[%clk 0:00:24.2]} 26... g6
{[%clk 0:00:26.6]} 27. Kh1 {[%clk 0:00:19.5]} 27... Qe2 {[%clk 0:00:17.6]} 28.
Rb1 {[%clk 0:00:14]} 28... Qxa2 {[%clk 0:00:16.4]} 29. Rxb7 {[%clk 0:00:11.9]}
29... Qa1+ {[%clk 0:00:16.1]} 30. Kh2 {[%clk 0:00:11.8]} 30... Qe5+ {[%clk
0:00:16.1]} 31. Kh1 {[%clk 0:00:12.4]} 31... Rf8 {[%clk 0:00:12.1]} 32. Qxc6
{[%clk 0:00:11.4]} 32... Rf1# {[%clk 0:00:11.4]} 0-1